[Event "*** Titled Tuesday Blitz"]
[Site "Chess.com"]
[Date "2020.05.26"]
[Round "6"]
[White "TregubovP"]
[Black "rakshi2005"]
[Result "0-1"]
[WhiteElo "2552"]
[BlackElo "2333"]
[TimeControl "180+1"]
[EndTime "11:09:17 PDT"]
[Termination "rakshi2005 won by resignation"]

1. e4 {[%clk 0:03:00.9]} 1... e5 {[%clk 0:02:59.7]} 2. Nf3 {[%clk 0:03:00.8]}
2... Nc6 {[%clk 0:02:59.7]} 3. Bb5 {[%clk 0:03:01.4]} 3... f5 {[%clk 0:02:59.3]}
4. d3 {[%clk 0:02:59.7]} 4... fxe4 {[%clk 0:02:59.5]} 5. dxe4 {[%clk 0:02:59.3]}
5... Nf6 {[%clk 0:03:00.1]} 6. O-O {[%clk 0:02:57.6]} 6... d6 {[%clk 0:03:00.2]}
7. h3 {[%clk 0:02:55.8]} 7... a6 {[%clk 0:02:48.9]} 8. Ba4 {[%clk 0:02:49.3]}
8... b5 {[%clk 0:02:47.6]} 9. Bb3 {[%clk 0:02:48.2]} 9... Na5 {[%clk 0:02:47.9]}
10. Nc3 {[%clk 0:02:36.9]} 10... Nxb3 {[%clk 0:02:47.8]} 11. axb3 {[%clk
0:02:36.6]} 11... Be7 {[%clk 0:02:41.6]} 12. Nd5 {[%clk 0:02:27.2]} 12... Be6
{[%clk 0:02:26.6]} 13. Nxe7 {[%clk 0:02:01.1]} 13... Qxe7 {[%clk 0:02:23.7]} 14.
Re1 {[%clk 0:01:54.2]} 14... O-O {[%clk 0:02:20.9]} 15. Nh4 {[%clk 0:01:53.1]}
15... Qf7 {[%clk 0:02:15.8]} 16. Qe2 {[%clk 0:01:38.3]} 16... Bd7 {[%clk
0:01:57.6]} 17. b4 {[%clk 0:00:48.6]} 17... Bc6 {[%clk 0:01:51.1]} 18. f3 {[%clk
0:00:48.5]} 18... Bd7 {[%clk 0:01:48.5]} 19. g4 {[%clk 0:00:47.1]} 19... Rfe8
{[%clk 0:01:18.7]} 20. Ra3 {[%clk 0:00:46.4]} 20... d5 {[%clk 0:01:17.8]} 21.
Nf5 {[%clk 0:00:44]} 21... Bxf5 {[%clk 0:01:14.2]} 22. exf5 {[%clk 0:00:43]}
22... e4 {[%clk 0:01:08.1]} 23. Bd2 {[%clk 0:00:29.4]} 23... Qd7 {[%clk
0:00:59.9]} 24. Qf2 {[%clk 0:00:25.5]} 24... d4 {[%clk 0:00:55.2]} 25. Bg5
{[%clk 0:00:19.3]} 25... e3 {[%clk 0:00:47.5]} 26. Qe2 {[%clk 0:00:19.4]} 26...
Qd6 {[%clk 0:00:45.9]} 27. Kg2 {[%clk 0:00:14.7]} 27... Qxb4 {[%clk 0:00:45.3]}
28. Rd3 {[%clk 0:00:13.6]} 28... Rad8 {[%clk 0:00:41.5]} 29. c3 {[%clk
0:00:12.7]} 29... dxc3 {[%clk 0:00:36.8]} 30. bxc3 {[%clk 0:00:11.8]} 30... Qc5
{[%clk 0:00:08.7]} 31. Bxe3 {[%clk 0:00:11.1]} 31... Qc6 {[%clk 0:00:05.3]} 32.
Rxd8 {[%clk 0:00:10.6]} 32... Rxd8 {[%clk 0:00:06.2]} 33. Bd4 {[%clk 0:00:11]}
33... Re8 {[%clk 0:00:05.7]} 34. Qf2 {[%clk 0:00:11.3]} 34... Nd5 {[%clk
0:00:03.7]} 35. Qa2 {[%clk 0:00:10.7]} 35... Rxe1 {[%clk 0:00:02.5]} 36. Kf2
{[%clk 0:00:11]} 36... Re8 {[%clk 0:00:02.2]} 37. Qd2 {[%clk 0:00:09.2]} 37...
Qc4 {[%clk 0:00:02.6]} 38. Qg5 {[%clk 0:00:08.7]} 38... Re7 {[%clk 0:00:02.1]}
39. f6 {[%clk 0:00:07.1]} 39... Qa2+ {[%clk 0:00:01.8]} 40. Kg3 {[%clk
0:00:07.2]} 40... Qe2 {[%clk 0:00:01.3]} 41. fxe7 {[%clk 0:00:06.8]} 41... Qe1+
{[%clk 0:00:01.7]} 42. Kg2 {[%clk 0:00:06.7]} 42... Qe2+ {[%clk 0:00:02.2]} 43.
Kg3 {[%clk 0:00:07.3]} 43... Qe1+ {[%clk 0:00:02.5]} 44. Kg2 {[%clk 0:00:07.8]}
44... Qe2+ {[%clk 0:00:03]} 45. Bf2 {[%clk 0:00:08.4]} 45... Nxe7 {[%clk
0:00:02.8]} 46. Qe3 {[%clk 0:00:08.6]} 46... Qxe3 {[%clk 0:00:02.8]} 47. Bxe3
{[%clk 0:00:08.2]} 47... Nd5 {[%clk 0:00:03.7]} 48. Bd2 {[%clk 0:00:08]} 48...
a5 {[%clk 0:00:04.1]} 49. f4 {[%clk 0:00:08.6]} 49... a4 {[%clk 0:00:04.5]} 50.
Bc1 {[%clk 0:00:08.3]} 50... Nb6 {[%clk 0:00:03.2]} 51. Kf3 {[%clk 0:00:08.1]}
51... Nc4 {[%clk 0:00:03.6]} 52. Ke4 {[%clk 0:00:08.1]} 52... a3 {[%clk
0:00:04]} 53. Bxa3 {[%clk 0:00:08.1]} 53... Nxa3 {[%clk 0:00:04.2]} 54. Kd5
{[%clk 0:00:08.7]} 54... Nb1 {[%clk 0:00:04.4]} 55. Kd4 {[%clk 0:00:07.2]} 55...
Kf7 {[%clk 0:00:03.9]} 56. Kd3 {[%clk 0:00:07.5]} 56... Ke6 {[%clk 0:00:03.9]}
57. Kc2 {[%clk 0:00:08]} 57... Na3+ {[%clk 0:00:04]} 58. Kb3 {[%clk 0:00:08.5]}
58... Nc4 {[%clk 0:00:04.4]} 59. Kb4 {[%clk 0:00:09.4]} 59... c6 {[%clk
0:00:04.9]} 60. Kc5 {[%clk 0:00:09.5]} 60... Kd7 {[%clk 0:00:05.3]} 61. f5
{[%clk 0:00:09.6]} 61... Ne3 {[%clk 0:00:05.3]} 62. Kd4 {[%clk 0:00:08.9]} 62...
Nd5 {[%clk 0:00:04.4]} 63. g5 {[%clk 0:00:07.2]} 63... Kd6 {[%clk 0:00:04.5]}
64. h4 {[%clk 0:00:06.3]} 64... c5+ {[%clk 0:00:04.9]} 65. Kd3 {[%clk
0:00:06.9]} 65... b4 {[%clk 0:00:03.9]} 66. cxb4 {[%clk 0:00:06.6]} 66... cxb4
{[%clk 0:00:04.8]} 67. Kc4 {[%clk 0:00:06.7]} 67... Ke5 {[%clk 0:00:04.9]} 68.
f6 {[%clk 0:00:06.1]} 68... gxf6 {[%clk 0:00:05]} 69. gxf6 {[%clk 0:00:06.5]}
69... Kxf6 {[%clk 0:00:05.6]} 0-1

[Event "*** Titled Tuesday Blitz"]
[Site "Chess.com"]
[Date "2020.05.26"]
[Round "6"]
[White "Rodalquilar"]
[Black "BogdanDeac"]
[Result "1/2-1/2"]
[WhiteElo "2629"]
[BlackElo "2942"]
[TimeControl "180+1"]
[EndTime "11:09:22 PDT"]
[Termination "Game drawn - insufficient material"]

1. d4 {[%clk 0:03:00.9]} 1... Nf6 {[%clk 0:02:59.6]} 2. c4 {[%clk 0:03:01]} 2...
e6 {[%clk 0:02:59.7]} 3. Nc3 {[%clk 0:03:01.5]} 3... Bb4 {[%clk 0:02:59.4]} 4.
Qc2 {[%clk 0:03:01.9]} 4... d6 {[%clk 0:02:58.4]} 5. Bd2 {[%clk 0:03:00]} 5...
c5 {[%clk 0:02:55.5]} 6. e3 {[%clk 0:02:59.3]} 6... cxd4 {[%clk 0:02:43.6]} 7.
exd4 {[%clk 0:02:59.3]} 7... Nc6 {[%clk 0:02:44.1]} 8. Nf3 {[%clk 0:02:59.6]}
8... d5 {[%clk 0:02:33.5]} 9. c5 {[%clk 0:02:30.8]} 9... a5 {[%clk 0:02:11.9]}
10. Bd3 {[%clk 0:02:24.1]} 10... b6 {[%clk 0:02:06.6]} 11. a3 {[%clk 0:01:53.8]}
11... Bxc3 {[%clk 0:02:05]} 12. Qxc3 {[%clk 0:01:54.7]} 12... Ne4 {[%clk
0:01:50.2]} 13. Qc2 {[%clk 0:01:52.5]} 13... Nxd2 {[%clk 0:01:43.4]} 14. Nxd2
{[%clk 0:01:43]} 14... Bd7 {[%clk 0:01:30.8]} 15. Nf3 {[%clk 0:01:36.6]} 15...
bxc5 {[%clk 0:01:30.4]} 16. Qxc5 {[%clk 0:01:34.1]} 16... Qe7 {[%clk 0:01:29.5]}
17. Rc1 {[%clk 0:01:31.2]} 17... Qxc5 {[%clk 0:01:22.5]} 18. Rxc5 {[%clk
0:01:32.1]} 18... Ke7 {[%clk 0:01:22.4]} 19. Kd2 {[%clk 0:01:31.1]} 19... f6
{[%clk 0:00:55]} 20. Rhc1 {[%clk 0:01:30.2]} 20... Kd6 {[%clk 0:00:55]} 21. Bb5
{[%clk 0:01:22]} 21... Rhc8 {[%clk 0:00:54.3]} 22. Bxc6 {[%clk 0:01:01.1]} 22...
Rxc6 {[%clk 0:00:52.4]} 23. R1c3 {[%clk 0:00:54.4]} 23... a4 {[%clk 0:00:31.7]}
24. Ne1 {[%clk 0:00:51.8]} 24... Rxc5 {[%clk 0:00:29.9]} 25. dxc5+ {[%clk
0:00:43.9]} 25... Kc7 {[%clk 0:00:28.2]} 26. Nd3 {[%clk 0:00:44.3]} 26... d4
{[%clk 0:00:26.6]} 27. Rc4 {[%clk 0:00:40.6]} 27... e5 {[%clk 0:00:25.1]} 28. c6
{[%clk 0:00:29.6]} 28... Be6 {[%clk 0:00:22.9]} 29. Rc1 {[%clk 0:00:27.9]} 29...
g5 {[%clk 0:00:21.4]} 30. f3 {[%clk 0:00:27.6]} 30... h5 {[%clk 0:00:20.7]} 31.
Nc5 {[%clk 0:00:18.8]} 31... Bf5 {[%clk 0:00:16.4]} 32. Ne4 {[%clk 0:00:12.4]}
32... Bxe4 {[%clk 0:00:15.7]} 33. fxe4 {[%clk 0:00:13.3]} 33... Rb8 {[%clk
0:00:15]} 34. Rc2 {[%clk 0:00:12.3]} 34... Rb6 {[%clk 0:00:14.7]} 35. Kd3 {[%clk
0:00:12.7]} 35... h4 {[%clk 0:00:12.6]} 36. h3 {[%clk 0:00:11.3]} 36... Rb3+
{[%clk 0:00:11.8]} 37. Kc4 {[%clk 0:00:07.7]} 37... Re3 {[%clk 0:00:06.6]} 38.
Kd5 {[%clk 0:00:07.6]} 38... d3 {[%clk 0:00:04.7]} 39. Rd2 {[%clk 0:00:07.6]}
39... Rg3 {[%clk 0:00:04.6]} 40. Kc5 {[%clk 0:00:05.4]} 40... Re3 {[%clk
0:00:04.2]} 41. Kb5 {[%clk 0:00:05.7]} 41... Rxe4 {[%clk 0:00:04.1]} 42. Rxd3
{[%clk 0:00:05.2]} 42... Re2 {[%clk 0:00:03.9]} 43. Rd7+ {[%clk 0:00:04.9]}
43... Kc8 {[%clk 0:00:04.1]} 44. Rf7 {[%clk 0:00:05]} 44... Rxb2+ {[%clk
0:00:04.5]} 45. Kxa4 {[%clk 0:00:05.4]} 45... Rxg2 {[%clk 0:00:04.9]} 46. Kb5
{[%clk 0:00:04.6]} 46... g4 {[%clk 0:00:04.2]} 47. hxg4 {[%clk 0:00:04.4]} 47...
h3 {[%clk 0:00:04.3]} 48. Rxf6 {[%clk 0:00:04.9]} 48... h2 {[%clk 0:00:03.7]}
49. Rh6 {[%clk 0:00:05.2]} 49... e4 {[%clk 0:00:04]} 50. Kc4 {[%clk 0:00:05.6]}
50... e3 {[%clk 0:00:04.2]} 51. Kd3 {[%clk 0:00:06.1]} 51... e2 {[%clk
0:00:04.5]} 52. Kd2 {[%clk 0:00:06.7]} 52... Rg1 {[%clk 0:00:03.6]} 53. Rh8+
{[%clk 0:00:04.4]} 53... Kc7 {[%clk 0:00:02.7]} 54. Kxe2 {[%clk 0:00:05.3]}
54... h1=Q {[%clk 0:00:02]} 55. Rxh1 {[%clk 0:00:06.2]} 55... Rxh1 {[%clk
0:00:02.6]} 56. Kf3 {[%clk 0:00:07.1]} 56... Kxc6 {[%clk 0:00:03]} 57. Kf4
{[%clk 0:00:08]} 57... Ra1 {[%clk 0:00:02.1]} 58. Kf5 {[%clk 0:00:08.9]} 58...
Rxa3 {[%clk 0:00:02.9]} 59. g5 {[%clk 0:00:08.8]} 59... Kd7 {[%clk 0:00:03.8]}
60. Kf6 {[%clk 0:00:08.4]} 60... Ke8 {[%clk 0:00:04.7]} 61. Kg7 {[%clk
0:00:08.9]} 61... Rg3 {[%clk 0:00:03.7]} 62. g6 {[%clk 0:00:09.2]} 62... Ke7
{[%clk 0:00:04.6]} 63. Kh8 {[%clk 0:00:02.1]} 63... Kf6 {[%clk 0:00:04.6]} 64.
g7 {[%clk 0:00:03]} 64... Rh3+ {[%clk 0:00:03.9]} 65. Kg8 {[%clk 0:00:03.5]}
65... Ra3 {[%clk 0:00:03.3]} 66. Kh8 {[%clk 0:00:03.4]} 66... Ra8+ {[%clk
0:00:03.2]} 67. Kh7 {[%clk 0:00:03.1]} 67... Ra7 {[%clk 0:00:02.9]} 68. Kh8
{[%clk 0:00:03.5]} 68... Ra1 {[%clk 0:00:02.8]} 69. g8=Q {[%clk 0:00:02.9]}
69... Rh1+ {[%clk 0:00:03.3]} 70. Qh7 {[%clk 0:00:03.5]} 70... Rxh7+ {[%clk
0:00:03.8]} 71. Kxh7 {[%clk 0:00:04]} 1/2-1/2

[Event "*** Titled Tuesday Blitz"]
[Site "Chess.com"]
[Date "2020.05.26"]
[Round "6"]
[White "nikitakhoroshev"]
[Black "yobdc"]
[Result "1-0"]
[WhiteElo "2438"]
[BlackElo "2060"]
[TimeControl "180+1"]
[EndTime "11:09:22 PDT"]
[Termination "nikitakhoroshev won by resignation"]

1. d4 {[%clk 0:03:00.9]} 1... Nf6 {[%clk 0:02:59.6]} 2. c4 {[%clk 0:03:00.9]}
2... e6 {[%clk 0:02:59.9]} 3. Nf3 {[%clk 0:03:00.2]} 3... Bb4+ {[%clk
0:03:00.1]} 4. Bd2 {[%clk 0:02:59.7]} 4... c5 {[%clk 0:02:59.6]} 5. a3 {[%clk
0:02:47.6]} 5... Bxd2+ {[%clk 0:02:59.1]} 6. Qxd2 {[%clk 0:02:48.5]} 6... cxd4
{[%clk 0:02:58.7]} 7. Nxd4 {[%clk 0:02:45.8]} 7... d5 {[%clk 0:02:57.6]} 8. cxd5
{[%clk 0:02:41.3]} 8... Nxd5 {[%clk 0:02:53.2]} 9. e4 {[%clk 0:02:39.4]} 9...
Nf6 {[%clk 0:02:53.4]} 10. f3 {[%clk 0:02:38]} 10... O-O {[%clk 0:02:51.2]} 11.
Nc3 {[%clk 0:02:36.2]} 11... Bd7 {[%clk 0:02:47.8]} 12. Be2 {[%clk 0:02:32.7]}
12... Nc6 {[%clk 0:02:48]} 13. Nxc6 {[%clk 0:02:30.2]} 13... Bxc6 {[%clk
0:02:46.7]} 14. Qxd8 {[%clk 0:02:28]} 14... Rfxd8 {[%clk 0:02:47.6]} 15. Rd1
{[%clk 0:02:25.7]} 15... Rxd1+ {[%clk 0:02:46.5]} 16. Kxd1 {[%clk 0:02:26.6]}
16... Kf8 {[%clk 0:02:44.2]} 17. Kc2 {[%clk 0:02:25.3]} 17... Ke7 {[%clk
0:02:44.5]} 18. Rd1 {[%clk 0:02:24.9]} 18... Rc8 {[%clk 0:02:43.1]} 19. Rd2
{[%clk 0:02:13.3]} 19... g5 {[%clk 0:02:42.5]} 20. g3 {[%clk 0:02:08.4]} 20...
g4 {[%clk 0:02:36.3]} 21. Kd3 {[%clk 0:02:01.3]} 21... gxf3 {[%clk 0:02:30.1]}
22. Bxf3 {[%clk 0:02:02.2]} 22... Nd7 {[%clk 0:02:27.6]} 23. Ke3 {[%clk
0:02:00.9]} 23... Ne5 {[%clk 0:02:27]} 24. Be2 {[%clk 0:02:01.3]} 24... Rg8
{[%clk 0:02:13.6]} 25. Rd1 {[%clk 0:01:56.9]} 25... h6 {[%clk 0:01:51.7]} 26.
Rf1 {[%clk 0:01:55.4]} 26... Rg5 {[%clk 0:01:50.5]} 27. b4 {[%clk 0:01:47]}
27... Rg8 {[%clk 0:01:44.3]} 28. Rf4 {[%clk 0:01:41.6]} 28... Ng6 {[%clk
0:01:42.4]} 29. Rf1 {[%clk 0:01:41]} 29... Rc8 {[%clk 0:01:40.8]} 30. Rc1 {[%clk
0:01:39.4]} 30... Ne5 {[%clk 0:01:31.8]} 31. Nb5 {[%clk 0:01:35.8]} 31... Ra8
{[%clk 0:01:26.5]} 32. Nd4 {[%clk 0:01:35.2]} 32... Kd6 {[%clk 0:01:20.2]} 33.
Rf1 {[%clk 0:01:34.1]} 33... Ba4 {[%clk 0:01:11.7]} 34. Rc1 {[%clk 0:01:30.6]}
34... Rd8 {[%clk 0:01:03.7]} 35. Rc3 {[%clk 0:01:27.1]} 35... Rd7 {[%clk
0:01:00.3]} 36. Rc1 {[%clk 0:01:17.4]} 36... Ke7 {[%clk 0:01:00.2]} 37. Rc8
{[%clk 0:01:14.6]} 37... Kf6 {[%clk 0:00:47.7]} 38. Rh8 {[%clk 0:01:07.6]} 38...
Kg7 {[%clk 0:00:47.6]} 39. Ra8 {[%clk 0:01:06.9]} 39... a6 {[%clk 0:00:47.6]}
40. Rc8 {[%clk 0:01:05.3]} 40... Nc6 {[%clk 0:00:43.3]} 41. Nxc6 {[%clk
0:01:02.3]} 41... Bxc6 {[%clk 0:00:44.2]} 42. Bxa6 {[%clk 0:00:53.6]} 42... Rd1
{[%clk 0:00:28.7]} 43. Be2 {[%clk 0:00:47.5]} 43... Re1 {[%clk 0:00:28.7]} 44.
Kf2 {[%clk 0:00:38]} 44... Rh1 {[%clk 0:00:27.8]} 45. Ke3 {[%clk 0:00:37.8]}
45... Rxh2 {[%clk 0:00:27.3]} 46. e5 {[%clk 0:00:29.9]} 46... Rg2 {[%clk
0:00:25.4]} 47. b5 {[%clk 0:00:27]} 47... Bd5 {[%clk 0:00:25.1]} 48. Rc7 {[%clk
0:00:22.5]} 48... Rxg3+ {[%clk 0:00:25.2]} 49. Kd4 {[%clk 0:00:22]} 49... Rxa3
{[%clk 0:00:25]} 50. Bh5 {[%clk 0:00:21.7]} 50... Ra4+ {[%clk 0:00:22.5]} 51.
Kc5 {[%clk 0:00:20.7]} 51... Rf4 {[%clk 0:00:21.3]} 52. Kd6 {[%clk 0:00:20.6]}
52... Rf5 {[%clk 0:00:19.1]} 53. Bg4 {[%clk 0:00:19.2]} 53... Rg5 {[%clk
0:00:18.5]} 54. Be2 {[%clk 0:00:19.4]} 54... h5 {[%clk 0:00:18.6]} 55. Rc3
{[%clk 0:00:19.1]} 55... h4 {[%clk 0:00:18.4]} 56. Rh3 {[%clk 0:00:18.8]} 56...
Rg2 {[%clk 0:00:15.8]} 57. Bh5 {[%clk 0:00:15.8]} 57... Kh6 {[%clk 0:00:14.1]}
58. Rxh4 {[%clk 0:00:15.2]} 58... Kg5 {[%clk 0:00:14.1]} 59. Rh3 {[%clk
0:00:15.5]} 59... Rd2 {[%clk 0:00:13]} 60. Ke7 {[%clk 0:00:13.6]} 60... Bc4
{[%clk 0:00:10.1]} 61. Bxf7 {[%clk 0:00:12.6]} 61... Rd5 {[%clk 0:00:08.4]} 62.
Rh5+ {[%clk 0:00:11.1]} 62... Kf4 {[%clk 0:00:08]} 63. Kf6 {[%clk 0:00:09.6]}
63... Rxb5 {[%clk 0:00:07.3]} 64. Rh4+ {[%clk 0:00:09.6]} 64... Ke3 {[%clk
0:00:06.2]} 65. Rxc4 {[%clk 0:00:10.5]} 65... Kd3 {[%clk 0:00:04.2]} 66. Rc7
{[%clk 0:00:10.3]} 66... Rb2 {[%clk 0:00:03]} 67. Bxe6 {[%clk 0:00:10.3]} 67...
b5 {[%clk 0:00:03.3]} 68. Bf5+ {[%clk 0:00:10.3]} 68... Kd4 {[%clk 0:00:03.2]}
69. e6 {[%clk 0:00:11.2]} 69... b4 {[%clk 0:00:02.2]} 70. e7 {[%clk 0:00:11.1]}
70... Re2 {[%clk 0:00:02.8]} 71. Rc8 {[%clk 0:00:10.6]} 71... b3 {[%clk
0:00:02.8]} 72. e8=Q {[%clk 0:00:10.8]} 1-0

[Event "*** Titled Tuesday Blitz"]
[Site "Chess.com"]
[Date "2020.05.26"]
[Round "6"]
[White "Rozum_Ivan"]
[Black "mishikomchedlishvili"]
[Result "1-0"]
[WhiteElo "2637"]
[BlackElo "2821"]
[TimeControl "180+1"]
[EndTime "11:09:31 PDT"]
[Termination "Rozum_Ivan won by resignation"]

1. d4 {[%clk 0:03:00.9]} 1... d6 {[%clk 0:03:00.1]} 2. Nf3 {[%clk 0:03:00.3]}
2... g6 {[%clk 0:02:59.3]} 3. g3 {[%clk 0:03:00.4]} 3... Bg7 {[%clk 0:02:57.8]}
4. Bg2 {[%clk 0:03:01]} 4... Nd7 {[%clk 0:02:54.5]} 5. O-O {[%clk 0:03:00.3]}
5... e5 {[%clk 0:02:54]} 6. dxe5 {[%clk 0:02:55.5]} 6... dxe5 {[%clk 0:02:52.8]}
7. Nc3 {[%clk 0:02:55.7]} 7... Ngf6 {[%clk 0:02:47.9]} 8. a4 {[%clk 0:02:49.9]}
8... O-O {[%clk 0:02:47.2]} 9. a5 {[%clk 0:02:50.1]} 9... c6 {[%clk 0:02:42.9]}
10. Nd2 {[%clk 0:02:49.6]} 10... Qc7 {[%clk 0:02:21.8]} 11. Nc4 {[%clk
0:02:48.6]} 11... Rd8 {[%clk 0:02:16.9]} 12. Qd6 {[%clk 0:02:48]} 12... Qxd6
{[%clk 0:02:15.3]} 13. Nxd6 {[%clk 0:02:48.9]} 13... Ne8 {[%clk 0:02:11.7]} 14.
Nxc8 {[%clk 0:02:44.3]} 14... Raxc8 {[%clk 0:02:11.6]} 15. Be3 {[%clk 0:02:40]}
15... a6 {[%clk 0:02:09.5]} 16. Rfd1 {[%clk 0:02:39.9]} 16... f5 {[%clk
0:01:56.1]} 17. Rd2 {[%clk 0:02:28.9]} 17... Bf6 {[%clk 0:01:48.6]} 18. Rad1
{[%clk 0:02:24.5]} 18... Nf8 {[%clk 0:01:48.3]} 19. Bb6 {[%clk 0:02:22.1]} 19...
Rxd2 {[%clk 0:01:47.6]} 20. Rxd2 {[%clk 0:02:23]} 20... e4 {[%clk 0:01:18.2]}
21. Na4 {[%clk 0:02:17.8]} 21... Nc7 {[%clk 0:01:10.9]} 22. c4 {[%clk
0:02:07.7]} 22... Nce6 {[%clk 0:01:09.1]} 23. f3 {[%clk 0:02:00.3]} 23... exf3
{[%clk 0:01:07.4]} 24. exf3 {[%clk 0:01:59.8]} 24... Re8 {[%clk 0:01:02.9]} 25.
f4 {[%clk 0:01:58.3]} 25... Bd8 {[%clk 0:00:54.9]} 26. Kf2 {[%clk 0:01:55.9]}
26... Kf7 {[%clk 0:00:53.7]} 27. b4 {[%clk 0:01:52]} 27... Bxb6+ {[%clk
0:00:49.2]} 28. axb6 {[%clk 0:01:51.9]} 28... Rd8 {[%clk 0:00:45.9]} 29. Rxd8
{[%clk 0:01:43.4]} 29... Nxd8 {[%clk 0:00:45.9]} 30. c5 {[%clk 0:01:43.4]} 30...
Ke7 {[%clk 0:00:41.3]} 31. Nb2 {[%clk 0:01:42.3]} 31... Nd7 {[%clk 0:00:32.4]}
32. Nc4 {[%clk 0:01:39.3]} 32... Nf7 {[%clk 0:00:29.3]} 33. Ke3 {[%clk
0:01:36.7]} 33... Nf6 {[%clk 0:00:28.9]} 34. Kd4 {[%clk 0:01:34.3]} 34... Ke6
{[%clk 0:00:27.9]} 35. Na5 {[%clk 0:01:23.6]} 35... Nd8 {[%clk 0:00:27.8]} 36.
Bf1 {[%clk 0:01:22.9]} 36... Kd7 {[%clk 0:00:26.4]} 37. Bd3 {[%clk 0:01:18.4]}
37... Nd5 {[%clk 0:00:23.8]} 38. Kc4 {[%clk 0:01:09.4]} 38... Ne3+ {[%clk
0:00:23.7]} 39. Kc3 {[%clk 0:01:09.2]} 39... Ng4 {[%clk 0:00:23.2]} 40. h4
{[%clk 0:01:00]} 40... Ne3 {[%clk 0:00:22.8]} 41. Bc4 {[%clk 0:00:46.3]} 41...
Ke7 {[%clk 0:00:17.6]} 42. Kd2 {[%clk 0:00:27.9]} 42... Ng4 {[%clk 0:00:16.7]}
43. Be2 {[%clk 0:00:23.4]} 43... Nf6 {[%clk 0:00:16.5]} 44. Bf3 {[%clk
0:00:23.5]} 44... Kd7 {[%clk 0:00:16.5]} 45. Kd3 {[%clk 0:00:23.5]} 45... Ne8
{[%clk 0:00:14.9]} 46. Nc4 {[%clk 0:00:22.9]} 46... Nf6 {[%clk 0:00:14.1]} 47.
Nd6 {[%clk 0:00:22.4]} 47... Ne8 {[%clk 0:00:12.8]} 48. Nc4 {[%clk 0:00:19.2]}
48... Nf6 {[%clk 0:00:12.9]} 49. Kd4 {[%clk 0:00:19.6]} 49... Nf7 {[%clk
0:00:12]} 50. Na5 {[%clk 0:00:12.3]} 50... Nd8 {[%clk 0:00:11.9]} 51. Ke5 {[%clk
0:00:11.9]} 51... Ne8 {[%clk 0:00:12.1]} 52. h5 {[%clk 0:00:08.1]} 52... Nf7+
{[%clk 0:00:12]} 53. Kd4 {[%clk 0:00:08.6]} 53... Nd8 {[%clk 0:00:12.2]} 54. Be2
{[%clk 0:00:08.2]} 54... Nf6 {[%clk 0:00:11.9]} 55. hxg6 {[%clk 0:00:08.1]}
55... hxg6 {[%clk 0:00:12.3]} 56. Bf3 {[%clk 0:00:07.1]} 56... Ne8 {[%clk
0:00:12.2]} 57. Nc4 {[%clk 0:00:06.9]} 57... Nf7 {[%clk 0:00:10.5]} 58. Be2
{[%clk 0:00:05.9]} 58... Nf6 {[%clk 0:00:10.2]} 59. Na5 {[%clk 0:00:06.1]} 59...
Nd8 {[%clk 0:00:09.3]} 60. Bc4 {[%clk 0:00:04.8]} 60... Ne4 {[%clk 0:00:08.5]}
61. g4 {[%clk 0:00:05.2]} 61... Nd2 {[%clk 0:00:08.4]} 62. gxf5 {[%clk
0:00:05.3]} 62... gxf5 {[%clk 0:00:08.7]} 63. Bd3 {[%clk 0:00:05.8]} 63... Ke6
{[%clk 0:00:07]} 64. Ke3 {[%clk 0:00:05.8]} 64... Ne4 {[%clk 0:00:05.1]} 65.
Bxe4 {[%clk 0:00:06.3]} 65... fxe4 {[%clk 0:00:05.5]} 66. Kxe4 {[%clk
0:00:07.2]} 66... Kf6 {[%clk 0:00:03.2]} 67. f5 {[%clk 0:00:07.6]} 67... Ke7
{[%clk 0:00:02.8]} 68. Kf4 {[%clk 0:00:07.9]} 68... Kf6 {[%clk 0:00:02.6]} 69.
Kg4 {[%clk 0:00:08.3]} 69... Kg7 {[%clk 0:00:02.6]} 70. Kg5 {[%clk 0:00:08.3]}
70... Nf7+ {[%clk 0:00:02.8]} 71. Kf4 {[%clk 0:00:08.8]} 71... Nd8 {[%clk
0:00:03.5]} 72. Ke5 {[%clk 0:00:09.1]} 72... Kf7 {[%clk 0:00:03.9]} 73. f6
{[%clk 0:00:09.3]} 73... Ke8 {[%clk 0:00:02.9]} 74. Kd6 {[%clk 0:00:09.4]} 1-0